Department Family,Entity,Date of Payment,Expense Type,Expense Area,Supplier,Transaction Number,Amount in Sterling,Line Description
ECGD,ECGD,10 Dec 20,Legal Fees transactions,LD,Kennedys Law LLP,         502,"85,212.92",Legal services
ECGD,ECGD,10 Dec 20,Legal Fees transactions,LD,Kennedys Law LLP,         503,"94,015.31",Legal services
ECGD,ECGD,30 Dec 20,Legal Fees transactions,LD,WINSTON & STRAWN LONDON LLP,         524,"66,216.00",Legal services
ECGD,ECGD,30 Dec 20,Legal Fees transactions,LD,WINSTON & STRAWN LONDON LLP,         525,"70,800.60",Legal services
ECGD,ECGD,7 Dec 20,Marketing,OCCMC,Department for International Trade,       80074,"27,564.36",Marketing & Communications
ECGD,ECGD,7 Dec 20,Online costs,Risk Approval Division,S&P Global Market Intelligence,       80090,"37,000.00",Credit Risk Analysis data
ECGD,ECGD,7 Dec 20,Marketing,OCCMC,Manning Gottlieb OMD,       80093,"81,588.31",Marketing & Communications
ECGD,ECGD,8 Dec 20,Agency - Interim Managers,HRD,Alexander Mann Solutions,       80105,769.92,Interim Staff
ECGD,ECGD,8 Dec 20,Agency - Interim Managers,HRD,Alexander Mann Solutions,       80105,"2,187.24",Interim Staff
ECGD,ECGD,8 Dec 20,Agency - Interim Managers,HRD,Alexander Mann Solutions,       80105,"2,637.70",Interim Staff
ECGD,ECGD,8 Dec 20,Agency - Interim Managers,HRD,Alexander Mann Solutions,       80105,"2,668.45",Interim Staff
ECGD,ECGD,8 Dec 20,Agency - Interim Managers,HRD,Alexander Mann Solutions,       80105,"2,949.35",Interim Staff
ECGD,ECGD,8 Dec 20,Agency - Specialist Contractors,HRD,Alexander Mann Solutions,       80105,"1,154.85",Interim Staff
ECGD,ECGD,8 Dec 20,Agency - Specialist Contractors,HRD,Alexander Mann Solutions,       80105,"2,184.20",Interim Staff
ECGD,ECGD,8 Dec 20,Agency - Specialist Contractors,HRD,Alexander Mann Solutions,       80105,"2,823.05",Interim Staff
ECGD,ECGD,8 Dec 20,Agency - Specialist Contractors,HRD,Alexander Mann Solutions,       80105,"2,823.05",Interim Staff
ECGD,ECGD,8 Dec 20,Agency - Specialist Contractors,HRD,Alexander Mann Solutions,       80105,"2,823.05",Interim Staff
ECGD,ECGD,8 Dec 20,Agency - Specialist Contractors,HRD,Alexander Mann Solutions,       80105,"3,207.95",Interim Staff
ECGD,ECGD,8 Dec 20,Agency - Temporary Staff,HRD,Alexander Mann Solutions,       80105,401.41,Interim Staff
ECGD,ECGD,8 Dec 20,Agency - Temporary Staff,HRD,Alexander Mann Solutions,       80105,528.92,Interim Staff
ECGD,ECGD,8 Dec 20,Agency - Temporary Staff,HRD,Alexander Mann Solutions,       80105,566.70,Interim Staff
ECGD,ECGD,8 Dec 20,Agency - Temporary Staff,HRD,Alexander Mann Solutions,       80105,632.82,Interim Staff
ECGD,ECGD,8 Dec 20,Agency - Temporary Staff,HRD,Alexander Mann Solutions,       80105,708.38,Interim Staff
ECGD,ECGD,8 Dec 20,Agency - Temporary Staff,HRD,Alexander Mann Solutions,       80105,708.38,Interim Staff
ECGD,ECGD,8 Dec 20,Agency - Temporary Staff,HRD,Alexander Mann Solutions,       80105,708.38,Interim Staff
ECGD,ECGD,8 Dec 20,Agency - Temporary Staff,HRD,Alexander Mann Solutions,       80105,708.38,Interim Staff
ECGD,ECGD,8 Dec 20,Agency - Temporary Staff,HRD,Alexander Mann Solutions,       80105,842.42,Interim Staff
ECGD,ECGD,8 Dec 20,IT Software Licensing & Subscription,ID,Fidelity National Info Services,       80106,"20,574.59",IT systems
ECGD,ECGD,8 Dec 20,IT Software Licensing & Subscription,ID,Fidelity National Info Services,       80106,"78,183.45",IT systems
ECGD,ECGD,10 Dec 20,Change Board Projects,Change Board,Cogsworx Limited,       80109,"50,200.00",Project IT services
ECGD,ECGD,15 Dec 20,Agency - Interim Managers,HRD,Alexander Mann Solutions,       80124,769.92,Interim Staff
ECGD,ECGD,15 Dec 20,Agency - Interim Managers,HRD,Alexander Mann Solutions,       80124,"2,187.24",Interim Staff
ECGD,ECGD,15 Dec 20,Agency - Interim Managers,HRD,Alexander Mann Solutions,       80124,"2,637.70",Interim Staff
ECGD,ECGD,15 Dec 20,Agency - Interim Managers,HRD,Alexander Mann Solutions,       80124,"2,668.45",Interim Staff
ECGD,ECGD,15 Dec 20,Agency - Interim Managers,HRD,Alexander Mann Solutions,       80124,"2,949.35",Interim Staff
ECGD,ECGD,15 Dec 20,Agency - Interim Managers,HRD,Alexander Mann Solutions,       80124,"2,949.35",Interim Staff
ECGD,ECGD,15 Dec 20,Agency - Specialist Contractors,HRD,Alexander Mann Solutions,       80124,"1,154.85",Interim Staff
ECGD,ECGD,15 Dec 20,Agency - Specialist Contractors,HRD,Alexander Mann Solutions,       80124,"2,730.25",Interim Staff
ECGD,ECGD,15 Dec 20,Agency - Specialist Contractors,HRD,Alexander Mann Solutions,       80124,"2,823.05",Interim Staff
ECGD,ECGD,15 Dec 20,Agency - Specialist Contractors,HRD,Alexander Mann Solutions,       80124,"2,823.05",Interim Staff
ECGD,ECGD,15 Dec 20,Agency - Specialist Contractors,HRD,Alexander Mann Solutions,       80124,"2,823.05",Interim Staff
ECGD,ECGD,15 Dec 20,Agency - Specialist Contractors,HRD,Alexander Mann Solutions,       80124,"3,207.95",Interim Staff
ECGD,ECGD,15 Dec 20,Agency - Temporary Staff,HRD,Alexander Mann Solutions,       80124,396.69,Interim Staff
ECGD,ECGD,15 Dec 20,Agency - Temporary Staff,HRD,Alexander Mann Solutions,       80124,661.15,Interim Staff
ECGD,ECGD,15 Dec 20,Agency - Temporary Staff,HRD,Alexander Mann Solutions,       80124,708.38,Interim Staff
ECGD,ECGD,15 Dec 20,Agency - Temporary Staff,HRD,Alexander Mann Solutions,       80124,842.42,Interim Staff
ECGD,ECGD,18 Dec 20,Capital Computers,ID,Dell  Incorporated,       80125,"58,049.69",IT Hardware
ECGD,ECGD,18 Dec 20,IT BAU Change & Small Projects,ID,Dell  Incorporated,       80125,"2,188.80",IT Hardware
ECGD,ECGD,17 Dec 20,IT Managed Services,ID,Risual Ltd,       80127,"64,948.25",IT systems
ECGD,ECGD,20 Dec 20,IT Software Licensing & Subscription,ID,Fidelity National Info Services,       80137,"20,459.34",IT systems
ECGD,ECGD,20 Dec 20,IT Software Licensing & Subscription,ID,Fidelity National Info Services,       80137,"77,745.50",IT systems
ECGD,ECGD,20 Dec 20,IT Software Licensing & Subscription,ID,"Reval.Com, Inc",       80144,"84,949.20",IT systems
ECGD,ECGD,20 Dec 20,Consultancy,ID,Ten10 Solutions Limited,       80145,"33,000.00",IT Consultancy
ECGD,ECGD,20 Dec 20,Agency - Interim Managers,HRD,Alexander Mann Solutions,       80146,769.92,Interim Staff
ECGD,ECGD,20 Dec 20,Agency - Interim Managers,HRD,Alexander Mann Solutions,       80146,"2,187.24",Interim Staff
ECGD,ECGD,20 Dec 20,Agency - Interim Managers,HRD,Alexander Mann Solutions,       80146,"2,668.45",Interim Staff
ECGD,ECGD,20 Dec 20,Agency - Interim Managers,HRD,Alexander Mann Solutions,       80146,"2,949.35",Interim Staff
ECGD,ECGD,20 Dec 20,Agency - Specialist Contractors,HRD,Alexander Mann Solutions,       80146,"1,154.85",Interim Staff
ECGD,ECGD,20 Dec 20,Agency - Specialist Contractors,HRD,Alexander Mann Solutions,       80146,"2,540.75",Interim Staff
ECGD,ECGD,20 Dec 20,Agency - Specialist Contractors,HRD,Alexander Mann Solutions,       80146,"2,540.75",Interim Staff
ECGD,ECGD,20 Dec 20,Agency - Specialist Contractors,HRD,Alexander Mann Solutions,       80146,"2,730.25",Interim Staff
ECGD,ECGD,20 Dec 20,Agency - Specialist Contractors,HRD,Alexander Mann Solutions,       80146,"2,823.05",Interim Staff
ECGD,ECGD,20 Dec 20,Agency - Specialist Contractors,HRD,Alexander Mann Solutions,       80146,"2,823.05",Interim Staff
ECGD,ECGD,20 Dec 20,Agency - Specialist Contractors,HRD,Alexander Mann Solutions,       80146,"2,823.05",Interim Staff
ECGD,ECGD,20 Dec 20,Agency - Specialist Contractors,HRD,Alexander Mann Solutions,       80146,"2,951.35",Interim Staff
ECGD,ECGD,20 Dec 20,Agency - Specialist Contractors,HRD,Alexander Mann Solutions,       80146,"2,951.35",Interim Staff
ECGD,ECGD,20 Dec 20,Agency - Specialist Contractors,HRD,Alexander Mann Solutions,       80146,"3,207.95",Interim Staff
ECGD,ECGD,20 Dec 20,Agency - Temporary Staff,HRD,Alexander Mann Solutions,       80146,661.15,Interim Staff
ECGD,ECGD,20 Dec 20,Agency - Temporary Staff,HRD,Alexander Mann Solutions,       80146,708.38,Interim Staff
ECGD,ECGD,20 Dec 20,Agency - Temporary Staff,HRD,Alexander Mann Solutions,       80146,842.42,Interim Staff
ECGD,ECGD,21 Dec 20,Change Board Projects,Change Board,Cogsworx Limited,       80153,"42,050.00",Project IT services
ECGD,ECGD,21 Dec 20,Marketing,OCCMC,Manning Gottlieb OMD,       80156,"44,351.88",Marketing & Communications
ECGD,ECGD,30 Dec 20,1HGR Rent and Charges,HRD,HM Treasury,       80171,"651,661.00",Accomodation/Rent
ECGD,ECGD,30 Dec 20,Agency - Interim Managers,HRD,Alexander Mann Solutions,       80173,769.92,Interim Staff
ECGD,ECGD,30 Dec 20,Agency - Interim Managers,HRD,Alexander Mann Solutions,       80173,"1,988.40",Interim Staff
ECGD,ECGD,30 Dec 20,Agency - Interim Managers,HRD,Alexander Mann Solutions,       80173,"2,401.61",Interim Staff
ECGD,ECGD,30 Dec 20,Agency - Specialist Contractors,HRD,Alexander Mann Solutions,       80173,"1,154.85",Interim Staff
ECGD,ECGD,30 Dec 20,Agency - Specialist Contractors,HRD,Alexander Mann Solutions,       80173,"2,184.20",Interim Staff
ECGD,ECGD,30 Dec 20,Agency - Specialist Contractors,HRD,Alexander Mann Solutions,       80173,"2,823.05",Interim Staff
ECGD,ECGD,30 Dec 20,Agency - Specialist Contractors,HRD,Alexander Mann Solutions,       80173,"2,823.05",Interim Staff
ECGD,ECGD,30 Dec 20,Agency - Specialist Contractors,HRD,Alexander Mann Solutions,       80173,"2,823.05",Interim Staff
ECGD,ECGD,30 Dec 20,Agency - Specialist Contractors,HRD,Alexander Mann Solutions,       80173,"3,207.95",Interim Staff
ECGD,ECGD,30 Dec 20,Agency - Temporary Staff,HRD,Alexander Mann Solutions,       80173,292.80,Interim Staff
ECGD,ECGD,30 Dec 20,Agency - Temporary Staff,HRD,Alexander Mann Solutions,       80173,387.25,Interim Staff
ECGD,ECGD,30 Dec 20,Agency - Temporary Staff,HRD,Alexander Mann Solutions,       80173,514.75,Interim Staff
ECGD,ECGD,30 Dec 20,Agency - Temporary Staff,HRD,Alexander Mann Solutions,       80173,547.81,Interim Staff
ECGD,ECGD,31 Dec 20,Agency - Interim Managers,HRD,Alexander Mann Solutions,       80174,"1,590.72",Interim Staff
ECGD,ECGD,31 Dec 20,Agency - Interim Managers,HRD,Alexander Mann Solutions,       80174,"2,134.76",Interim Staff
ECGD,ECGD,31 Dec 20,Agency - Interim Managers,HRD,Alexander Mann Solutions,       80174,"2,637.70",Interim Staff
ECGD,ECGD,31 Dec 20,Agency - Interim Managers,HRD,Alexander Mann Solutions,       80174,"2,637.70",Interim Staff
ECGD,ECGD,31 Dec 20,Agency - Interim Managers,HRD,Alexander Mann Solutions,       80174,"2,949.35",Interim Staff
ECGD,ECGD,31 Dec 20,Agency - Specialist Contractors,HRD,Alexander Mann Solutions,       80174,"1,693.83",Interim Staff
ECGD,ECGD,31 Dec 20,Agency - Specialist Contractors,HRD,Alexander Mann Solutions,       80174,"1,976.14",Interim Staff
ECGD,ECGD,31 Dec 20,Agency - Specialist Contractors,HRD,Alexander Mann Solutions,       80174,"2,184.20",Interim Staff
ECGD,ECGD,31 Dec 20,Agency - Specialist Contractors,HRD,Alexander Mann Solutions,       80174,"2,258.44",Interim Staff
ECGD,ECGD,31 Dec 20,Agency - Temporary Staff,HRD,Alexander Mann Solutions,       80174,382.52,Interim Staff
ECGD,ECGD,31 Dec 20,Agency - Temporary Staff,HRD,Alexander Mann Solutions,       80174,396.69,Interim Staff
ECGD,ECGD,31 Dec 20,Agency - Temporary Staff,HRD,Alexander Mann Solutions,       80174,519.30,Interim Staff
ECGD,ECGD,31 Dec 20,Agency - Temporary Staff,HRD,Alexander Mann Solutions,       80174,566.70,Interim Staff
ECGD,ECGD,31 Dec 20,Agency - Temporary Staff,HRD,Alexander Mann Solutions,       80174,865.50,Interim Staff
ECGD,ECGD,31 Dec 20,Legal Fees transactions,LD,Hogan Lovells Int LLP,       80176,"27,928.95",Legal services
11 Jan 21,,,- 1 -,,,11:48:10,,
